bitfinex/quotes_ETHUSD_20230403
["timestamp","ask_amount","ask_price","bid_price","bid_amount"]
[1680532917037,0.11000001,1799.2,1799.1,6.65674]
[1680532917243,0.11000001,1799.2,1799.1,6.65874]
[1680532917409,0.11000001,1799.2,1799.1,0.27991]
[1680532917612,0.11000001,1799.2,1799.1,0.27791]
[1680532917784,0.11000001,1799.2,1799.0,0.30064533]
[1680532917986,0.11000001,1799.2,1799.0,0.02272533]
[1680532918228,0.86635473,1799.2,1799.0,0.27792]
[1680532918432,3.71901238,1799.2,1798.6,0.002]
[1680532918608,3.71901238,1799.2,1798.4,0.006]
[1680532918609,2.76602218,1799.1,1798.4,0.55603]
[1680532918806,8.72797218,1799.1,1798.4,0.55603]
[1680532919010,0.87279722,1799.0,1798.4,0.27801]
[1680532919208,2.76602218,1798.9,1798.3,0.28003]
[1680532919435,2.76602218,1798.9,1798.4,0.83405]
[1680532920035,2.77302218,1798.9,1798.4,0.83405]
[1680532920743,0.007,1798.9,1798.4,0.83405]
[1680532921047,5.9898902,1799.2,1798.6,1.94587]
[1680532921048,0.007,1799.1,1798.6,1.94587]
[1680532921187,2.77302218,1799.1,1798.6,1.94587]
[1680532921394,0.9529902,1799.2,1798.6,1.94987]
[1680532921647,3.71901238,1799.2,1798.6,1.96860039]
[1680532921945,3.71901238,1799.2,1798.6,2.17440093]
[1680532922097,3.71901238,1799.2,1798.6,2.17840093]
[1680532922911,0.86635473,1799.2,1798.6,2.17440093]
[1680532923701,0.86635473,1799.2,1798.6,1.06247093]
[1680532923938,2.76602218,1799.1,1798.6,0.02273039]
[1680532924091,8.58902218,1799.1,1798.5,0.55599]
[1680532924293,9.00788218,1799.1,1798.4,0.28402]
[1680532924528,5.823,1798.9,1798.3,0.27803]
[1680532924738,2.90500218,1798.8,1798.2,0.83414]
[1680532924971,2.90500218,1798.8,1798.3,0.83411]
[1680532924972,3.6390224,1798.8,1798.3,0.83411]
[1680532925105,5.823,1798.5,1798.2,0.02873544]
[1680532925307,5.823,1798.5,1797.2,11.69578637]
[1680532925308,8.58902218,1798.3,1797.9,0.006]
[1680532925498,8.58902218,1798.3,1797.6,1.45241257]
[1680532925499,13.53809218,1798.3,1797.8,0.006]
[1680532925694,7.17680922,1798.2,1797.8,0.006]
[1680532925939,2.76602218,1798.1,1797.6,0.006]
[1680532926456,1.35580922,1798.2,1797.6,0.28414]
[1680532926601,2.90505218,1798.2,1797.6,0.28414]
[1680532926799,2.76602218,1798.2,1797.6,0.28414]
[1680532927001,2.90505218,1798.2,1797.6,0.28414]
[1680532927228,4.532,1798.3,1797.6,6.66343]
[1680532927411,7.43504218,1798.3,1797.6,6.66543]
[1680532927613,7.29802218,1798.3,1797.7,0.666543]
[1680532927928,7.29802218,1798.3,1797.7,0.950653]
[1680532928631,2.76802218,1798.3,1797.7,1.506913]
[1680532928837,2.76602218,1798.3,1797.7,1.52965478]
[1680532929049,2.76602218,1798.3,1797.8,0.15296548]
[1680532929253,0.28001,1798.5,1797.9,7.76964]
[1680532929254,0.002,1798.5,1797.9,7.76964]
[1680532929450,0.002,1798.5,1797.9,0.008]
[1680532929451,8.58902218,1798.2,1797.9,0.008]
[1680532929745,7.09900222,1798.1,1797.5,0.006]
[1680532929910,8.72807218,1798.0,1797.5,0.006]
[1680532930113,9.00815218,1798.0,1797.5,0.006]
[1680532930357,6.72381522,1797.9,1797.3,0.28417]
[1680532930560,2.76602218,1797.8,1797.4,0.27817]
[1680532930763,2.76602218,1797.8,1797.4,0.84052]
[1680532930914,2.76602218,1797.8,1797.4,0.28417]
[1680532931226,2.76602218,1797.8,1797.4,0.84052]
[1680532932335,3.0426244,1797.8,1797.4,0.84052]
[1680532932762,0.002,1798.0,1797.4,0.84052]
[1680532932980,2.76602218,1798.0,1797.4,0.84052]
[1680532933189,2.76602218,1798.0,1797.8,0.222318]
[1680532933701,2.76602218,1798.0,1797.8,0.500428]
[1680532934803,2.76602218,1798.0,1797.8,0.222318]
[1680532934974,2.76602218,1798.0,1797.8,0.500428]
[1680532935906,3.12024864,1798.0,1797.8,0.500428]
[1680532936103,3.12024864,1798.0,1797.8,0.222318]
[1680532936536,2.76602218,1798.0,1797.8,0.500428]
[1680532936844,0.77624241,1798.1,1797.8,0.500428]
[1680532937133,0.77624241,1798.1,1797.8,1.056658]
[1680532937436,0.77624241,1798.1,1797.8,1.08539851]
[1680532937987,0.77624241,1798.1,1797.8,0.228318]
[1680532938321,2.76602218,1798.0,1797.8,0.222318]
[1680532938497,2.90507218,1798.0,1797.8,0.222318]
[1680532939123,9.00615218,1798.0,1797.8,0.222318]
[1680532939431,8.73007218,1798.0,1797.8,0.222318]
[1680532939606,0.87300722,1797.9,1797.8,0.222318]
[1680532939806,3.6390294,1797.9,1797.8,0.222318]
[1680532940597,3.6390294,1797.9,1797.8,0.500428]
[1680532940831,2.76602218,1797.9,1797.8,0.500428]
[1680532941017,0.07962424,1798.1,1797.8,0.222318]
[1680532941330,2.84364642,1798.1,1797.8,0.222318]
[1680532941792,2.84364642,1798.1,1797.8,0.500428]
[1680532941993,2.84364642,1798.1,1797.8,0.222318]
[1680532942238,0.28436464,1798.0,1797.8,0.222318]
[1680532942393,2.76602218,1798.1,1797.8,0.500428]
[1680532942594,0.002,1798.2,1797.8,1.056658]
[1680532942826,5.825,1798.4,1797.8,1.056658]
[1680532943023,8.86706218,1798.3,1797.8,0.222318]
[1680532943230,6.84872622,1798.2,1797.8,0.222318]
[1680532943438,8.58902218,1798.1,1797.8,0.222318]
[1680532943738,0.13904,1798.0,1797.8,0.222318]
[1680532943932,2.76602218,1797.9,1797.8,0.222318]
[1680532945118,2.76240923,1797.9,1797.8,0.222318]
[1680532945327,3.53799166,1797.9,1797.8,0.222318]
[1680532945845,0.77558243,1797.9,1797.8,1.056658]
[1680532945993,0.77558243,1797.9,1797.8,1.1623238]
[1680532946196,0.77558243,1797.9,1797.8,1.18506431]
[1680532946635,0.77558243,1797.9,1797.8,7.00806431]
[1680532946807,0.77558243,1797.9,1797.8,7.01606431]
[1680532947325,0.002,1798.5,1797.8,7.01606431]
[1680532947672,11.8190048,1798.8,1797.9,6.52460643]
[1680532947673,0.13898,1798.7,1797.9,6.52460643]
[1680532947842,2.76602218,1798.6,1798.0,0.27808]
[1680532947997,2.76602218,1798.6,1797.9,6.52660643]
[1680532948197,2.76602218,1798.6,1798.0,0.27808]
[1680532948510,2.76602218,1798.6,1798.0,0.68106864]
[1680532948714,2.76602218,1798.6,1798.0,0.95914864]
[1680532948941,2.90501218,1798.6,1798.0,0.27808]
[1680532953141,2.76602218,1798.6,1798.0,0.83425]
[1680532953455,2.90501218,1798.6,1798.0,6.10108]
[1680532953745,2.76602218,1798.6,1798.0,6.66325]
[1680532954045,2.76602218,1798.6,1798.1,0.944375]
[1680532956548,2.90501218,1798.6,1798.1,0.944375]
[1680532956851,0.006507,1798.7,1798.1,0.944375]
[1680532957027,2.76602218,1798.7,1798.1,0.944375]
[1680532957431,0.222541,1798.6,1798.1,0.944375]
[1680532957643,0.222541,1798.6,1798.2,0.0944375]
[1680532957830,0.222541,1798.6,1798.2,0.3724875]
[1680532958028,0.222541,1798.6,1798.2,0.0944375]
[1680532958517,2.76602218,1798.5,1798.1,0.002]
[1680532958716,8.72803218,1798.5,1798.0,0.27808]
[1680532959055,8.73003218,1798.5,1797.9,0.27809]
[1680532959812,9.00803218,1798.5,1797.7,0.006]
[1680532960054,5.823,1798.3,1797.4,0.56235]
[1680532960360,2.76602218,1798.2,1797.4,0.56235]
[1680532960562,2.90505218,1798.2,1797.5,0.27814]
[1680532960854,2.90505218,1798.2,1797.5,0.9412533]
[1680532960855,3.8058614,1798.2,1797.5,0.9412533]
[1680532961056,3.8058614,1798.2,1797.5,0.9472533]
[1680532962228,3.6668314,1798.2,1797.5,0.9472533]
[1680532963522,3.6668314,1798.2,1797.5,1.52746038]
[1680532964162,3.8058514,1798.2,1797.5,1.52746038]
[1680532964334,0.38058514,1798.1,1797.5,1.52746038]
[1680532964667,3.14660732,1798.1,1797.5,1.52746038]
[1680532965158,2.76602218,1798.1,1797.5,2.37834127]
[1680532965320,0.002,1798.2,1797.6,0.58020708]
[1680532965523,0.7415593,1798.4,1797.7,2.52704708]
[1680532965824,3.50758148,1798.4,1797.9,0.83427]
[1680532970678,3.50758148,1798.4,1797.9,1.41447708]
[1680532970867,3.50758148,1798.4,1797.9,1.42047708]
[1680532971169,3.50758148,1798.4,1798.1,0.27806]
[1680532973575,2.76602218,1798.1,1797.7,0.58020708]
[1680532973778,3.08855822,1798.1,1797.7,0.58020708]
[1680532974483,3.08855822,1798.1,1797.7,0.85833708]
[1680532975147,0.71448497,1798.0,1797.7,0.85833708]
[1680532975353,0.71448497,1798.0,1797.7,0.85832708]
[1680532978581,0.71448497,1798.0,1797.7,1.41458708]
[1680532978769,0.71448497,1798.0,1797.7,1.64400818]
[1680532979089,0.71448497,1798.0,1797.7,1.65000818]
[1680532979466,0.71448497,1798.0,1797.8,0.58020708]
[1680532979792,0.71448497,1798.0,1797.9,0.8343]
[1680532980302,2.168,1798.5,1797.9,0.8343]
[1680532980486,2.76602218,1798.4,1797.9,0.8343]
[1680532983574,0.002,1798.5,1797.9,0.8343]
[1680532983775,2.76602218,1798.5,1797.9,0.8343]
[1680532984362,2.76602218,1798.5,1798.1,0.8342]
[1680532986698,2.76347028,1798.5,1798.1,0.8342]
[1680532987411,2.76347028,1798.5,1798.1,0.97851451]
[1680532988863,2.76347028,1798.5,1798.1,1.55872159]
[1680532989100,2.76347028,1798.5,1798.1,0.97851451]
[1680532989263,2.76347028,1798.5,1798.1,1.55872159]
[1680532989596,2.76347028,1798.5,1798.1,0.97851451]
[1680532989895,2.76347028,1798.5,1798.1,1.55872159]
[1680532990293,0.68233436,1798.4,1798.1,1.55872159]
[1680532990499,0.68233436,1798.4,1798.1,0.98451451]
[1680532990686,0.68233436,1798.4,1798.1,1.56272159]
[1680532990890,0.68233436,1798.4,1798.1,1.56472159]
[1680532993078,0.68233436,1798.4,1798.2,8.76822976]
[1680532993408,0.68233436,1798.4,1798.3,8.34948708]
[1680532993607,0.68233436,1798.4,1798.3,11.13188708]
[1680532993768,0.68233436,1798.4,1798.3,11.40256089]
[1680532994101,0.004507,1799.0,1798.3,12.55753102]
[1680532994307,0.004507,1799.0,1798.6,1.94589]
[1680532994507,0.004507,1799.0,1798.6,7.76889]
[1680532994737,0.11450701,1799.2,1798.6,7.77089]
[1680532994867,0.11000001,1799.2,1798.6,7.77089]
[1680532995075,0.11000001,1799.2,1798.7,0.0227291]
[1680532995269,0.11000001,1799.2,1798.8,1.94568]
[1680532995270,0.75837161,1798.9,1798.8,1.94568]
[1680532996222,0.11450701,1799.2,1798.8,1.94568]
[1680532996387,0.11000001,1799.2,1798.8,1.94568]
[1680532999937,0.11000001,1799.2,1798.8,2.44568]
[1680533000097,0.11000001,1799.2,1798.8,8.27068]
[1680533000293,0.11000001,1799.2,1798.9,0.827068]
[1680533000621,0.11000001,1799.2,1799.0,1.94551]
[1680533001795,0.11000001,1799.2,1798.8,9.817]
[1680533001796,2.87602219,1799.2,1798.8,0.002]
[1680533002113,2.76602218,1799.1,1798.6,0.27798]
[1680533002313,0.27660222,1799.0,1798.6,0.83396]
[1680533002517,2.77052918,1799.1,1798.6,0.83396]
[1680533002718,2.76602218,1799.1,1798.6,0.83396]
[1680533002926,2.76652918,1799.1,1798.6,0.83396]
[1680533003130,7.987,1799.0,1798.5,0.002]
[1680533003419,3.18293218,1798.9,1798.1,4.9656]
[1680533003636,0.31829322,1798.8,1798.2,0.27804]
[1680533003833,3.2232954,1798.8,1798.2,0.27804]
[1680533004127,3.2278024,1798.8,1798.2,0.27804]
[1680533005208,0.75756569,1798.7,1798.2,0.27804]
[1680533005424,1.1606095,1798.7,1798.2,0.27804]
[1680533006080,1.1606095,1798.7,1798.2,0.30077542]
[1680533006371,1.1606095,1798.7,1798.2,0.85688542]
[1680533006674,0.76207269,1798.7,1798.2,0.85688542]
[1680533007227,0.76207269,1798.7,1798.2,6.67988542]
[1680533007430,0.76207269,1798.7,1798.2,6.68188542]
[1680533007942,0.76207269,1798.7,1798.2,9.4479076]
[1680533008177,0.75756569,1798.7,1798.2,9.4479076]
[1680533008479,0.75756569,1798.7,1798.4,5.823]
[1680533008678,0.75756569,1798.7,1798.5,0.278]
[1680533008679,0.76207269,1798.7,1798.5,0.278]
[1680533009079,0.76207269,1798.7,1798.5,0.83401]
[1680533010564,0.75756569,1798.7,1798.6,5.823]
[1680533010783,0.75756569,1798.7,1798.6,6.10299]
[1680533011104,0.004507,1798.9,1798.6,7.60147022]
[1680533011255,0.004507,1798.9,1798.6,7.83147022]
[1680533011456,0.004507,1799.1,1798.6,7.83147022]
[1680533011764,0.11000001,1799.2,1798.6,7.83147022]
[1680533011765,0.11450701,1799.2,1798.6,7.83147022]
[1680533012151,0.75877451,1799.0,1798.8,5.823]
[1680533012490,0.75877451,1799.0,1798.9,0.5823]
[1680533012696,0.75877451,1799.0,1798.7,0.78793]
[1680533012905,0.75877451,1799.0,1798.9,0.27794]
[1680533013070,0.11000001,1799.2,1798.9,3.82985218]
[1680533013270,0.11000001,1799.2,1798.9,3.59985218]
[1680533013600,0.11000001,1799.2,1799.0,6.18298522]
[1680533013802,0.11000001,1799.2,1799.1,6.65674]
[1680533014104,0.11000001,1799.2,1799.1,7.7704]
[1680533014403,0.11000001,1799.2,1799.1,9.94112405]
[1680533014566,0.11000001,1799.2,1799.1,7.79312405]
[1680533014909,0.11000001,1799.2,1799.1,8.60843498]
[1680533020256,0.11000001,1799.2,1799.1,11.61043498]
[1680533021060,0.11000001,1799.2,1799.1,11.60843498]
[1680533022293,0.11000001,1799.2,1799.1,11.61043498]
[1680533025291,0.1062301,1799.2,1799.1,11.61043498]
[1680533034298,0.1062301,1799.2,1799.1,11.58771093]
[1680533034500,0.1062301,1799.2,1799.1,0.002]
[1680533034702,0.1062301,1799.2,1799.0,0.27992]
[1680533034868,0.1062301,1799.2,1799.1,0.27791]
[1680533036095,1.3422301,1799.2,1799.1,0.27791]
[1680533036296,1.47645311,1799.2,1799.0,0.85676]
[1680533036498,1.47645311,1799.2,1799.0,0.30091]
[1680533036697,1.47645311,1799.2,1799.0,0.023]
[1680533037087,2.76602218,1799.1,1799.0,0.023]
[1680533037403,0.004507,1799.1,1799.0,0.023]
[1680533037701,1.47645311,1799.2,1799.0,0.022]
[1680533038913,1.47645311,1799.2,1799.0,0.29992]
[1680533039516,1.3422301,1799.2,1799.0,0.29992]
[1680533040085,0.1062301,1799.2,1799.0,0.29992]
[1680533041179,0.1062301,1799.2,1799.1,5.823]
[1680533041475,0.1062301,1799.2,1799.1,6.65874]
[1680533045763,0.10308671,1799.2,1799.1,6.65874]
[1680533045938,0.10308671,1799.2,1799.1,0.28591]
[1680533046263,0.10308671,1799.2,1799.1,0.27791]
[1680533046442,0.10308671,1799.2,1799.0,0.59957531]
[1680533046643,0.10308671,1799.2,1799.0,0.87748531]
[1680533047263,0.6565354,1799.1,1799.0,0.87748531]
[1680533047465,0.6565354,1799.1,1799.0,1.54833384]
[1680533048269,0.10308671,1799.2,1799.0,1.54833384]
[1680533048563,0.10308671,1799.2,1799.0,7.37133384]
[1680533048881,0.10308671,1799.2,1799.0,7.37333384]
[1680533049872,0.10308671,1799.2,1799.1,9.0044]
[1680533050030,0.10308671,1799.2,1799.1,8.74249738]
[1680533053673,0.10308671,1799.2,1799.1,9.32646156]
[1680533053990,0.11000001,1799.5,1799.1,9.32646156]
[1680533053991,0.01008672,1799.5,1799.3,5.823]
[1680533054199,0.01008672,1799.5,1799.4,25.37038668]
[1680533054494,0.01008672,1799.5,1799.4,24.21132778]
[1680533054690,0.01008672,1799.5,1799.4,24.99553003]
[1680533054993,8.672e-05,1799.5,1799.4,25.01753003]
[1680533055154,0.11000001,1799.7,1799.5,0.5]
[1680533055490,0.11000001,1799.7,1799.6,12.00187218]
[1680533055655,0.11000001,1799.7,1799.6,15.58459587]
[1680533055850,1e-08,1799.7,1799.6,16.2554444]
[1680533056476,1e-08,1799.7,1799.6,15.67472071]
[1680533056679,1e-08,1799.7,1799.6,16.2554444]
[1680533057469,1e-08,1799.7,1799.6,16.27816215]
[1680533058102,1e-08,1799.7,1799.6,16.568524]
[1680533058286,1e-08,1799.7,1799.6,16.27793129]
[1680533059025,0.39000001,1800.2,1799.6,16.27793129]
[1680533059026,0.11450701,1800.4,1799.6,16.27793129]
[1680533059223,0.28,1800.3,1800.0,10.68318123]
[1680533059360,2.99e-06,1800.3,1800.2,9.58059905]
[1680533059562,2.99e-06,1800.3,1800.2,23.18761576]
[1680533059915,2.99e-06,1800.3,1800.2,27.58039386]
[1680533060360,2.99e-06,1800.3,1800.2,25.54903218]
[1680533060558,3e-06,1800.4,1800.3,0.02270891]
[1680533060774,3e-06,1800.4,1800.3,22.23985109]
[1680533060972,3e-06,1800.4,1800.3,22.24385109]
[1680533061299,3e-06,1800.4,1800.3,24.33523639]
[1680533061668,3e-06,1800.4,1800.3,21.86623639]
[1680533061863,3e-06,1800.4,1800.3,25.00808492]
[1680533062197,3e-06,1800.4,1800.3,29.35473907]
[1680533062400,0.004507,1801.8,1800.3,34.62378397]
[1680533062568,1.236,1802.1,1801.4,6.10056]
[1680533062569,0.004507,1802.1,1801.4,6.10056]
[1680533062767,2.76602218,1802.0,1801.6,0.83258]
[1680533062975,2.76602218,1802.0,1801.7,0.029]
[1680533062976,0.004507,1802.0,1801.7,0.029]
[1680533063193,0.69646468,1802.0,1801.7,0.3065]
[1680533063393,0.69195768,1802.0,1801.8,0.2775]
[1680533063802,0.69195768,1802.0,1801.9,0.03]
[1680533063973,0.69195768,1802.0,1801.9,0.30748]
[1680533064173,0.004507,1802.2,1801.9,0.30748]
[1680533064504,0.004507,1802.3,1801.9,7.415726]
[1680533064801,1.231,1802.1,1801.9,0.002]
[1680533065001,1.231,1802.1,1801.5,10.6232]
[1680533065002,1.235507,1802.1,1801.5,0.002]
[1680533065209,1.235507,1802.1,1801.4,0.14653768]
[1680533065210,2.76602218,1802.0,1801.4,0.14053768]
[1680533065366,0.006507,1802.1,1801.4,0.14053768]
[1680533065570,2.76602218,1802.1,1801.7,0.016]
[1680533065885,0.004507,1802.1,1801.4,0.30024504]
[1680533066068,0.004507,1802.1,1801.9,0.016]
[1680533066268,0.69749708,1802.2,1801.7,0.002]
[1680533066516,0.69299008,1802.2,1801.9,0.016]
[1680533066726,3.45901226,1802.2,1801.9,0.016]
[1680533067027,0.34590123,1802.1,1802.0,0.016]
[1680533067323,0.34590123,1802.1,1801.5,6.37808]
[1680533067324,3.11643041,1802.1,1801.5,0.002]
[1680533067484,2.76602218,1802.0,1801.3,0.14129395]
[1680533067823,8.73225918,1802.0,1801.7,0.016]
[1680533067980,2.43360222,1801.9,1801.2,0.27759]
[1680533068242,0.222221,1801.2,1801.1,6.10259]
[1680533068821,0.222221,1801.2,1801.1,0.002]
[1680533069023,0.222221,1801.2,1801.0,6.11661]
[1680533069228,0.222221,1801.2,1801.0,6.10261]
[1680533069474,0.222221,1801.2,1801.0,6.11861]
[1680533069626,0.222221,1801.2,1801.0,5.841]
[1680533070071,0.222221,1801.2,1801.0,6.10261]
[1680533070375,0.222221,1801.2,1801.0,5.825]
[1680533070526,0.222221,1801.2,1801.0,6.11862]
[1680533071127,0.222221,1801.2,1801.0,6.79270909]
[1680533071472,0.222221,1801.2,1801.0,6.69656009]
[1680533072360,0.222221,1801.2,1801.0,0.002]
[1680533072662,0.222221,1801.2,1800.8,0.27964]
[1680533072867,0.222221,1801.2,1800.9,0.27763]
[1680533073229,0.68730908,1801.1,1800.9,0.8329]
[1680533073437,0.68730908,1801.1,1801.0,0.016]
[1680533073643,0.68730908,1801.1,1801.0,0.29362]
[1680533073942,0.68730908,1801.1,1801.0,6.67186]
[1680533074138,0.222221,1801.2,1801.0,6.65786]
[1680533074340,0.222221,1801.2,1801.0,6.68056009]
[1680533074542,0.222221,1801.2,1801.0,6.65786]
[1680533074864,0.222221,1801.2,1801.0,0.002]
[1680533075164,0.222221,1801.2,1800.9,0.27763]
[1680533075165,0.68730908,1801.1,1800.9,0.27763]
[1680533075374,0.68730908,1801.1,1800.7,0.55532]
[1680533075375,0.68730908,1801.1,1800.8,0.27764]
[1680533075581,0.68730908,1801.1,1800.7,0.27765]
[1680533075925,0.68730908,1801.1,1800.7,0.83298]
[1680533076251,0.222221,1801.2,1800.9,0.016]
[1680533076427,0.222221,1801.2,1800.9,0.29363]
[1680533076840,0.222221,1801.2,1800.9,0.016]
[1680533077062,0.222221,1801.2,1800.9,5.823]
[1680533077363,0.222221,1801.2,1800.9,5.825]
[1680533077662,0.222221,1801.2,1800.9,0.002]
[1680533077839,0.361011,1801.2,1800.7,0.02270386]
[1680533078047,0.6398691,1801.2,1801.0,0.016]
[1680533078264,0.6398691,1801.2,1800.7,0.02270386]
[1680533078569,0.222221,1801.2,1800.7,0.30036386]
[1680533078728,0.222221,1801.2,1800.9,0.016]
[1680533078929,0.222221,1801.2,1800.9,0.29363]
[1680533079224,0.222221,1801.2,1800.9,0.27763]
[1680533079460,0.222221,1801.2,1801.0,5.823]
[1680533079765,0.222221,1801.2,1801.0,6.10262]
[1680533080065,0.222221,1801.2,1801.0,0.002]
[1680533080267,0.69961012,1801.1,1800.8,0.002]
[1680533080471,0.79179323,1801.1,1800.6,0.27768]
[1680533080675,0.79179323,1801.1,1800.5,3.0]
[1680533080836,1.20819323,1801.1,1800.7,0.016]
[1680533081169,0.93059323,1801.1,1800.7,0.016]
[1680533081526,0.79179323,1801.1,1800.7,0.016]
[1680533082065,0.93059323,1801.1,1800.7,0.016]
[1680533082470,0.79179323,1801.1,1800.7,0.016]
[1680533082860,0.93059323,1801.1,1800.7,0.016]
[1680533083169,0.79179323,1801.1,1800.7,0.016]
[1680533083536,0.93059323,1801.1,1800.7,0.016]
[1680533083946,5.0060815,1801.0,1800.7,0.016]
[1680533084148,5.0060815,1801.0,1800.3,0.002]
[1680533084149,2.29781,1800.9,1800.3,0.002]
[1680533084373,2.138,1800.7,1800.5,0.016]
[1680533084544,0.2138,1800.6,1800.5,0.016]
[1680533084962,3.11866218,1800.6,1800.5,0.016]
[1680533085159,5.55534218,1800.6,1799.9,0.37778]
[1680533085349,2.138,1800.5,1799.9,0.37778]
[1680533085688,8.09985,1800.5,1799.9,0.1]
[1680533085976,8.09985,1800.5,1800.2,0.016]
[1680533085977,3.57600718,1800.4,1800.2,0.016]
[1680533086349,3.57600718,1800.4,1799.9,0.37778]
[1680533086879,3.57298878,1800.4,1799.9,0.37778]
[1680533087085,3.71184878,1800.4,1799.9,0.1]
[1680533087271,2.51818488,1800.3,1799.9,0.1]
[1680533087584,5.28420706,1800.3,1799.9,0.1]
[1680533087785,5.28620706,1800.3,1799.9,0.1]
[1680533088098,5.28620706,1800.3,1799.9,0.37779]
[1680533088753,5.28620706,1800.3,1799.9,0.1]
[1680533088954,5.28620706,1800.3,1799.9,0.37778]
[1680533089156,3.29464289,1800.2,1799.9,0.1]
[1680533089487,2.159,1800.1,1799.9,0.1]
[1680533089683,4.92502218,1800.1,1799.9,0.1]
[1680533089986,4.92502218,1800.1,1799.9,0.37778]
[1680533090370,4.92502218,1800.1,1799.9,0.1]
[1680533090845,4.92502218,1800.1,1799.9,0.37778]
[1680533091047,0.002,1800.2,1799.9,6.75636]
[1680533091241,2.295357,1800.5,1800.0,0.675636]
[1680533091458,2.76602218,1800.4,1800.0,0.27777]
[1680533091676,2.76602218,1800.4,1800.0,0.83332]
[1680533092083,4.90402218,1800.4,1800.0,0.83332]
[1680533092581,2.165507,1800.5,1800.0,6.65632]
[1680533092785,30.236507,1800.6,1800.1,0.02271144]
[1680533092991,0.006507,1800.6,1800.2,0.8332]
[1680533093208,10.0273,1800.7,1800.2,0.8332]
[1680533093209,2.161,1800.7,1800.2,0.8332]
[1680533093506,4.92502218,1800.7,1800.2,0.8332]
[1680533093805,2.76602218,1800.7,1800.2,0.8332]
[1680533094170,2.76602218,1800.7,1800.2,0.8392]
[1680533094419,2.76602218,1800.7,1800.3,0.08392]
[1680533094591,2.76602218,1800.7,1800.4,1.94398]
[1680533095299,0.63086271,1800.6,1800.4,1.94398]
[1680533096275,2.147,1800.8,1800.4,1.94398]
[1680533097290,2.147,1800.8,1800.4,0.83313]
[1680533097485,2.147,1800.8,1800.5,0.083313]
[1680533098040,2.147,1800.8,1800.5,0.916393]
[1680533098494,2.147,1800.8,1800.5,0.360993]
[1680533098783,0.006507,1801.0,1800.5,6.739393]
[1680533099090,32.383507,1801.2,1800.6,0.6739393]
[1680533099251,4.91952918,1801.2,1800.7,0.27765]
[1680533099468,4.91752918,1801.2,1800.7,0.83298]
[1680533099815,0.49175292,1801.1,1800.7,0.83298]
[1680533099968,4.91952918,1801.2,1800.7,0.83298]
[1680533100151,2.151507,1801.2,1800.7,0.83298]
[1680533100351,0.006507,1801.3,1800.8,5.823]
[1680533100591,2.163507,1801.4,1800.9,0.83289]
[1680533100978,2.159,1801.4,1800.9,6.65589]
[1680533101162,2.159,1801.4,1801.0,0.665589]
[1680533101359,2.76602218,1801.3,1800.9,0.008]
[1680533101570,2.138,1801.2,1800.9,0.8329]
[1680533103883,2.159,1801.0,1800.7,0.008]
[1680533104165,4.90402218,1801.1,1800.5,0.006]
[1680533104166,2.159,1800.8,1800.5,0.006]
[1680533104396,2.147,1800.6,1800.2,0.27773]
[1680533104552,2.147,1800.6,1799.9,15.1365]
[1680533104553,2.28584,1800.6,1800.1,0.006]
[1680533104752,2.147,1800.6,1800.2,0.27774]
[1680533105379,2.147,1800.6,1800.1,0.83325]
[1680533105578,2.147,1800.6,1800.2,0.27774]
[1680533105882,2.147,1800.6,1800.1,1.50194627]
[1680533106492,2.161,1800.8,1800.1,7.32494627]
[1680533106696,5.443127,1801.0,1800.1,7.32694627]
[1680533106993,2.90484218,1800.9,1800.2,6.55569463]
[1680533107157,2.147,1800.8,1800.3,0.27772]
[1680533107357,2.65263492,1800.8,1800.3,0.27772]
[1680533107556,2.147,1800.8,1800.3,0.27772]
[1680533108254,2.147,1800.8,1800.3,6.65618]
[1680533108456,2.147,1800.8,1800.3,6.68688891]
[1680533108764,2.147,1800.8,1800.3,6.13142891]
[1680533108997,2.76602218,1800.7,1800.3,0.008]
[1680533109198,2.76602218,1800.7,1800.2,0.004]
[1680533109199,2.42660222,1800.6,1800.2,0.004]
[1680533109505,2.42660222,1800.6,1800.2,0.28373]
[1680533109706,2.1467778,1800.6,1800.2,0.28373]
[1680533110274,2.1467778,1800.6,1800.2,0.83922]
[1680533110484,0.51547176,1800.5,1800.2,0.28373]
[1680533111196,0.51547176,1800.5,1800.2,0.006]
[1680533111370,0.51547176,1800.5,1800.2,0.28374]
[1680533111780,0.51547176,1800.5,1800.2,0.006]
[1680533111985,0.78169672,1800.5,1800.1,0.02271144]
[1680533112157,3.07954672,1800.5,1800.1,0.02271144]
[1680533112562,5.8455689,1800.5,1800.1,0.02271144]
[1680533112758,0.58455689,1800.4,1800.1,0.02271144]
[1680533113801,0.72340689,1800.4,1800.1,0.02271144]
[1680533114200,0.58455689,1800.4,1800.1,0.02271144]
[1680533114635,0.72340689,1800.4,1800.1,0.02271144]
[1680533114838,0.72340689,1800.4,1799.9,0.1]
[1680533115134,0.72340689,1800.4,1799.9,0.37778]
[1680533115355,0.58455689,1800.4,1799.9,1.06222085]
[1680533115658,0.51747176,1800.5,1799.9,7.44080085]
[1680533115803,0.51547176,1800.5,1799.9,8.02242933]
[1680533117013,0.004507,1800.9,1800.4,6.10271]
[1680533117222,0.47246277,1800.8,1800.4,6.65814]
[1680533117421,0.47246277,1800.8,1800.5,0.665814]
[1680533117637,3.23848495,1800.8,1800.3,0.008]
[1680533117803,2.15,1800.7,1800.2,0.006]
[1680533118004,2.15,1800.7,1800.3,0.83318]
[1680533118204,3.24048495,1800.8,1800.3,0.85588891]
[1680533118433,3.23848495,1800.8,1800.3,0.85588891]
[1680533118650,2.147,1800.5,1800.2,0.006]
[1680533118862,2.147,1800.5,1800.1,0.002]
[1680533118863,0.13885,1800.4,1800.1,0.002]
[1680533119160,0.41656,1800.4,1799.9,0.106]
[1680533119505,3.18258218,1800.4,1799.9,0.106]
[1680533120782,3.18258218,1800.4,1799.9,0.1]
[1680533120953,3.7157404,1800.4,1799.9,0.1]
[1680533121356,2.76602218,1800.3,1799.9,0.1]
[1680533121508,2.90489218,1800.3,1799.9,0.1]
[1680533123340,0.41664,1800.1,1799.9,0.1]